lending/lending_fUSD_20240705
["ID","MTS","AMOUNT","RATE_DAILY","PERIOD"]
[331301380,1720201836682,-150.0,0.00013817,2]
[331301381,1720201836692,-150.0,0.0001382,2]
[331301383,1720201836701,-150.0,0.00013827,2]
[331301384,1720201836710,-193.62934922,0.00013849,2]
[331301385,1720201836719,-150.0,0.00013849,2]
[331301386,1720201836728,-150.0,0.00013856,2]
[331301388,1720201836737,-155.16178558,0.00013889,2]
[331301390,1720201836746,-227.17477303,0.00013889,2]
[331301391,1720201836755,-651.44479338,0.00013889,2]
[331301392,1720201836764,-220.36,0.0001389,3]
[331301393,1720201836773,-150.0,0.00013897,2]
[331301394,1720201836781,-150.0,0.00013898,2]
[331301395,1720201836791,-295.18363334,0.00013899,2]
[331301396,1720201836800,-3268.9447,0.000139,2]
[331301397,1720201836810,-4243.7712,0.000139,2]
[331301398,1720201836820,-3768.5956,0.000139,2]
[331301399,1720201836828,-7423.2934,0.000139,2]
[331301400,1720201836837,-3505.662,0.000139,2]
[331301401,1720201836847,-159.52704912,0.000139,2]
[331301402,1720201836856,-150.0,0.00013906,2]
[331301403,1720201836868,-385.42000634,0.0001391,2]
[331301404,1720201836878,-150.0,0.00013963,2]
[331301405,1720201836888,-899.64,0.00013973,3]
[331301406,1720201836898,-150.0,0.00013973,2]
[331301407,1720201836907,-150.0,0.00013975,2]
[331301408,1720201836917,-2800.0139986,0.00013999,2]
[331301409,1720201836926,-2209.70088661,0.00014,2]
[331301410,1720201837388,-16302.08182436,0.00014,2]
[331301411,1720201837400,-18711.44816338,0.00014,2]
[331301412,1720201837412,-412.61335126,0.00014,2]
[331301418,1720201839216,-15860.12604693,0.00014,2]
[331301419,1720201839228,-10428.31533087,0.00014,2]
[331301420,1720201839294,-221810.82884133,0.00014,2]
[331301421,1720201839304,-71216.45926388,0.00014,2]
[331301422,1720201839317,-283.96,0.00014,2]
[331301532,1720201841045,-1512.03022282,0.00014,2]
[331301535,1720201841060,-2295.43776254,0.00014,2]
[331301673,1720201844032,-685.06477435,0.00013128,2]
[331301674,1720201844042,-1400.0069993,0.00013999,2]
[331301675,1720201844051,-13307.3251667,0.00014,2]
[331301676,1720201844063,-2992.66511614,0.00014,2]
[331301677,1720201844074,-4765.843978,0.00014,2]
[331301678,1720201844091,-4304.832246,0.00014,2]
[331301728,1720201856438,-308.22585228,0.00012257,2]
[331301730,1720201856447,-14722.87317539,0.00012257,2]
[331301732,1720201856460,-2839.0,0.00012257,2]
[331301753,1720201856663,-374.81699722,0.00012257,2]
[331301755,1720201856675,-1400.55359634,0.00012257,2]
[331301803,1720201913428,173.09053971,0.00011199,2]
[331301804,1720201920781,200.12032499,0.00011199,2]
[331301805,1720201920946,365.26443049,0.00011199,2]
[331301806,1720201921280,202.72559596,0.00011199,2]
[331301807,1720201922358,380.35151486,0.00011199,2]
[331301808,1720201922814,158.56926775,0.00011199,2]
[331301809,1720201923988,304.47543261,0.00011199,2]
[331301810,1720201924780,523.44090366,0.00011199,2]
[331301811,1720201924939,227.17477303,0.00011199,2]
[331301812,1720201934264,164.04625942,0.00011199,2]
[331301813,1720201936264,346.90762572,0.00011199,2]
[331301814,1720201937192,2205.89349028,0.00011199,2]
[331301815,1720201940172,227.17477303,0.00011199,2]
[331301822,1720202028529,4520.76506849,0.00011199,2]
[331301824,1720202029249,10000.0,0.00011199,2]
[331301825,1720202029276,10000.0,0.00011199,2]
[331301826,1720202029300,10000.0,0.00011199,2]
[331301827,1720202029323,7430.41957348,0.00011199,2]
[331301831,1720202139190,2569.58042652,0.00011199,2]
[331301832,1720202140048,10000.0,0.00011199,2]
[331301833,1720202140638,10000.0,0.00011199,2]
[331301834,1720202140723,10000.0,0.00011199,2]
[331301835,1720202140786,5071.32531541,0.00011199,2]
[331301836,1720202144094,4928.67468459,0.00011199,2]
[331301837,1720202144120,289.12909327,0.00011199,2]
[331301838,1720202168595,-362.010111,0.00025475,120]
[331301839,1720202168640,-312.46972395,0.00026,120]
[331301840,1720202168683,-1962.52016505,0.0003015,120]
[331301841,1720202255070,713.24,0.00011615,2]
[331301842,1720202333150,2839.0,0.00011615,2]
[331301843,1720202369788,312.46972395,0.00026,120]
[331301844,1720202372515,6158.63090673,0.00011199,2]
[331301845,1720202373258,5146.24556428,0.00011199,2]
[331301846,1720202408192,4853.75443572,0.00011615,2]
[331301847,1720202408255,2700.90609965,0.00011615,2]
[331301848,1720202451893,227.17477303,0.00011199,2]
[331301849,1720202497511,7071.91912732,0.00011199,2]
[331301850,1720202497535,2906.39712925,0.00011199,2]
[331301851,1720202503348,1060.0826073,0.00011199,2]
[331301852,1720202540873,6033.52026345,0.00011199,2]
[331301853,1720202540897,4165.04446841,0.00011199,2]
[331301854,1720202546116,1264.73271285,0.00011199,2]
[331301856,1720202596330,218.80500075,0.00011199,2]
[331301857,1720202601111,1569.43628346,0.00011199,2]
[331301858,1720202601267,-928.37,0.00012826,2]
[331301859,1720202601288,-150.0,0.00012848,2]
[331301860,1720202601310,-250.0,0.00012853,2]
[331301861,1720202601332,-9218.46570018,0.00012856,2]
[331301862,1720202601355,-200.0,0.00012856,2]
[331301863,1720202601380,-222.2,0.00012859,2]
[331301864,1720202602013,-279.0,0.00012859,2]
[331301865,1720202602323,-300.0,0.00012859,2]
[331301866,1720202602346,-12847.37,0.0001286,2]
[331301867,1720202602377,-182.09,0.00012959,2]
[331301868,1720202613662,-1432.09002884,0.00013128,2]
[331301869,1720202613683,-165.666,0.00013474,2]
[331301870,1720202613703,-3103.29,0.00013474,2]
[331301871,1720202613724,-544.75624556,0.00013482,2]
[331301872,1720202613748,-544.75624557,0.00013482,2]
[331301873,1720202613769,-702.24261395,0.00013516,2]
[331301874,1720202613790,-227.17477303,0.00013516,2]
[331301875,1720202613810,-205.96912808,0.00013543,2]
[331301876,1720202613960,-1596.55926479,0.00013574,2]
[331301877,1720202739988,2781.98153453,0.00011199,2]
[331301878,1720202740175,612.26993266,0.00011199,2]
[331301879,1720202807762,2884.20773097,0.00011199,2]
[331301880,1720202808599,6503.52233637,0.00011199,2]
[331301881,1720202808664,10000.0,0.00011199,2]
[331301882,1720202808725,3496.47766363,0.00011199,2]
[331301883,1720202817058,171.05,0.00010283,2]
[331301884,1720202831844,483.62526826,0.00011199,2]
[331301886,1720202912637,5848.84706811,0.00011199,2]
[331301887,1720202913556,10000.0,0.00011199,2]
[331301888,1720202914399,10000.0,0.00011199,2]
[331301889,1720202915054,4151.15293189,0.00011199,2]
[331301890,1720202983223,276.15184313,0.00011199,2]
[331301891,1720203012565,5572.69522498,0.00011199,2]
[331301892,1720203012596,455.0,0.00011199,2]
[331301893,1720203012627,18936.23253866,0.00011199,2]
[331301894,1720203032664,-159.90727442,0.00012114,2]
[331301895,1720203032674,-200.79272258,0.00012114,2]
[331301896,1720203032687,-328.21590955,0.00012114,2]
[331301898,1720203034309,-137.65803455,0.00012114,2]
[331301899,1720203034324,-166.93977838,0.00012144,2]
[331301900,1720203034336,-499.72688828,0.00012144,2]
[331301901,1720203034346,-666.66666666,0.00012173,2]
[331301902,1720203034356,-281.5182,0.00012214,2]
[331301903,1720203034366,-155.16151155,0.00012302,2]
[331301904,1720203034375,-155.54679538,0.00012302,2]
[331301905,1720203034385,-1500.0,0.00012302,2]
[331301906,1720203034395,-266.10658237,0.00012314,2]
[331301907,1720203034404,-246.53949848,0.00012314,2]
[331301908,1720203034414,-142.29380924,0.00012314,2]
[331301909,1720203034425,-157.70619076,0.00012314,2]
[331301910,1720203034435,-300.3968695,0.00012314,2]
[331301911,1720203034445,-218.43007515,0.00012314,2]
[331301912,1720203034454,-250.0,0.00012786,2]
[331301913,1720203034464,-967.43646848,0.00012822,2]
[331301915,1720203038942,-32.56353152,0.00012822,2]
[331301917,1720203038952,-167.57,0.00012832,2]
[331301919,1720203038962,-174.39,0.00012843,2]
[331301922,1720203038972,-606.12,0.00012857,2]
[331301924,1720203038982,-300.0,0.00012859,2]
[331301926,1720203039005,-300.0,0.00012859,2]
[331301928,1720203039025,-23900.0,0.0001286,2]
[331301929,1720203039035,-250.0,0.0001286,2]
[331301931,1720203039046,-10215.14,0.0001286,2]
[331301933,1720203039056,-366.88750614,0.00013128,2]
[331301935,1720203039066,-158.25429544,0.00013128,2]
[331301937,1720203039077,-528.66553933,0.00013128,2]
[331301938,1720203039087,-211.67761017,0.00013128,2]
[331301939,1720203039098,-155.0,0.00013128,2]
[331301940,1720203039108,-202.47730064,0.00013472,2]
[331301941,1720203039118,-474.80233104,0.00013472,2]
[331301942,1720203039129,-484.21355964,0.00013516,2]
[331301943,1720203039139,-161.10446598,0.00013543,2]
[331301944,1720203039149,-369.04652903,0.00013543,2]
[331301945,1720203039159,-647.26467047,0.00013543,2]
[331301946,1720203039169,-10893.5537508,0.00013564,2]
[331301947,1720203039179,-958.71675623,0.00013574,2]
[331301948,1720203039190,-150.99,0.00013574,2]
[331301949,1720203039200,-499.99,0.00013574,2]
[331301950,1720203039209,-860.82,0.00013699,2]
[331301951,1720203039219,-731.29876733,0.00013736,2]
[331301952,1720203039229,-150.0,0.00013736,2]
[331301953,1720203039239,-150.0,0.00013737,2]
[331301954,1720203039249,-150.0,0.00013741,2]
[331301955,1720203039259,-150.0,0.00013745,2]
[331301956,1720203039271,-150.0,0.00013745,2]
[331301957,1720203039281,-150.0,0.00013746,2]
[331301958,1720203039291,-150.0,0.00013752,2]
[331301959,1720203039300,-150.0,0.00013754,2]
[331301960,1720203039310,-150.0,0.00013754,2]
[331301961,1720203039320,-150.0,0.00013757,2]
[331301962,1720203039330,-150.0,0.00013758,2]
[331301963,1720203039340,-150.0,0.00013759,2]
[331301964,1720203039350,-150.0,0.0001376,2]
[331301965,1720203039360,-150.0,0.0001376,2]
[331301966,1720203039369,-150.0,0.00013763,2]
[331301967,1720203039379,-150.0,0.00013766,2]
[331301968,1720203039391,-150.0,0.00013768,2]
[331301969,1720203039402,-150.0,0.00013786,2]
[331301970,1720203039411,-150.0,0.00013787,2]
[331301971,1720203039421,-150.0,0.00013789,2]
[331301972,1720203039430,-150.0,0.00013791,2]
[331301973,1720203039440,-150.0,0.00013791,2]
[331301974,1720203039449,-150.0,0.00013791,2]
[331301975,1720203039459,-150.0,0.00013792,2]
[331301976,1720203039468,-150.0,0.00013792,2]
[331301977,1720203039478,-150.0,0.00013793,2]
[331301978,1720203039487,-150.0,0.00013796,2]
[331301979,1720203039496,-150.0,0.00013797,2]
[331301980,1720203039509,-150.0,0.00013797,2]
[331301981,1720203039520,-150.0,0.00013797,2]
[331301982,1720203039530,-150.0,0.00013808,2]
[331301983,1720203039540,-150.0,0.0001381,2]
[331301984,1720203039551,-150.0,0.00013811,2]
[331301985,1720203039560,-150.0,0.00013811,2]
[331301986,1720203039570,-150.0,0.00013814,2]
[331301987,1720203039581,-150.0,0.0001382,2]
[331301988,1720203039595,-150.0,0.00013821,2]
[331301989,1720203039605,-150.0,0.00013822,2]
[331301990,1720203039615,-150.0,0.00013826,2]
[331301991,1720203039625,-150.0,0.00013827,2]
[331301992,1720203039635,-150.0,0.00013827,2]
[331301993,1720203039645,-150.0,0.00013829,2]
[331301994,1720203039654,-150.0,0.00013831,2]
[331301995,1720203039664,-150.0,0.00013833,2]
[331301996,1720203039674,-150.0,0.00013833,2]
[331301997,1720203039684,-150.0,0.00013835,2]
[331301998,1720203039695,-150.0,0.00013839,2]
[331301999,1720203039704,-150.0,0.00013844,2]
[331302000,1720203039714,-150.0,0.00013849,2]
[331302001,1720203039724,-150.0,0.00013853,2]
[331302002,1720203039734,-150.0,0.00013854,2]
[331302003,1720203039745,-150.0,0.00013857,2]
[331302004,1720203039777,-150.0,0.0001386,2]
[331302005,1720203039788,-150.0,0.00013868,2]
[331302006,1720203039798,-150.0,0.00013869,2]
[331302007,1720203039808,-150.0,0.00013869,2]
[331302008,1720203039818,-150.0,0.00013878,2]
[331302009,1720203039828,-150.0,0.00013879,2]
[331302010,1720203039838,-183.75649659,0.00013879,2]
[331302011,1720203039852,-201.88187353,0.00013879,2]
[331302012,1720203039863,-713.24,0.00013879,2]
[331302013,1720203039873,-150.0,0.00013894,2]
[331302014,1720203039883,-150.0,0.00013896,2]
[331302015,1720203039893,-150.0,0.00013896,2]
[331302016,1720203039904,-150.0,0.00013897,2]
[331302017,1720203039914,-150.0,0.00013897,2]
[331302018,1720203039924,-292.56780445,0.00013899,2]
[331302019,1720203039934,-4314.66561966,0.000139,2]
[331302020,1720203039946,-318.20514663,0.000139,2]
[331302258,1720203042668,-367.11383788,0.00012314,2]
[331302261,1720203042679,-954.63821922,0.00013472,2]
[331302263,1720203042689,-150.0,0.00013791,2]
[331302264,1720203042700,-150.0,0.00013835,2]
[331302266,1720203042710,-428.77821895,0.000139,2]
[331302269,1720203042725,-2452.59683165,0.000139,2]
[331302271,1720203042736,-1720.39690758,0.000139,2]
[331302273,1720203042748,-4368.20919247,0.000139,2]
[331302286,1720203043526,-150.0,0.00013785,2]
[331302287,1720203043536,-150.0,0.00013891,2]
[331302288,1720203043547,-537.83558024,0.000139,2]
[331302289,1720203043561,-758.54168234,0.000139,2]
[331302327,1720203044872,-150.0,0.0001378,2]
[331302328,1720203044882,-150.0,0.00013877,2]
[331302329,1720203044892,-257.8211037,0.000139,2]
[331302330,1720203044903,-919.21862842,0.000139,2]
[331302331,1720203046325,-789.69268836,0.000139,2]
[331302332,1720203046335,-1622.30731164,0.000139,2]
[331302333,1720203046347,-939.78168836,0.000139,2]
[331302334,1720203046356,-2087.5524,0.000139,2]
[331302335,1720203046365,-466.9961,0.000139,2]
[331302336,1720203046376,-6686.53981164,0.000139,2]
[331302337,1720203046389,-339.9825,0.000139,2]
[331302351,1720203047036,-1324.8,0.000139,2]
[331302373,1720203047234,-289.78365456,0.000139,2]
[331302375,1720203047361,-430.6096317,0.000139,2]
[331302376,1720203047373,-363.366,0.000139,2]
[331302377,1720203047771,-181.5850021,0.000139,2]
[331302378,1720203047783,-622.39392031,0.000139,2]
[331302379,1720203047795,-404.18567969,0.000139,2]
[331302380,1720203047804,-558.06296554,0.000139,2]
[331302381,1720203047815,-596.13999999,0.000139,2]
[331302382,1720203047827,-2076.53833447,0.000139,2]
[331302383,1720203047836,-6686.0536,0.000139,2]
[331302384,1720203047846,-150.0,0.00013902,2]
[331302385,1720203047856,-150.0,0.00013902,2]
[331302386,1720203047866,-150.0,0.00013904,2]
[331302387,1720203047875,-150.0,0.00013904,2]
[331302388,1720203047884,-150.0,0.00013906,2]
[331302389,1720203047894,-150.0,0.00013906,2]
[331302390,1720203047903,-150.0,0.00013909,2]
[331302391,1720203047912,-150.0,0.0001391,2]
[331302392,1720203047922,-150.0,0.00013916,2]
[331302393,1720203047932,-150.0,0.00013924,2]
[331302394,1720203047941,-150.0,0.00013928,2]
[331302395,1720203047951,-150.0,0.00013928,2]
[331302396,1720203047961,-533.6633,0.0001393,2]
[331302397,1720203047971,-150.0,0.00013932,2]
[331302398,1720203047981,-150.0,0.00013933,2]
[331302399,1720203047991,-150.0,0.00013935,2]
[331302400,1720203048000,-150.0,0.00013936,2]
[331302401,1720203048011,-150.0,0.00013945,2]
[331302402,1720203048021,-150.0,0.00013952,2]
[331302403,1720203048032,-150.0,0.00013953,2]
[331302404,1720203048042,-150.0,0.00013954,2]
[331302405,1720203048053,-150.0,0.00013966,2]
[331302406,1720203048063,-150.0,0.00013967,2]
[331302407,1720203048072,-2000.0,0.00013973,3]
[331302408,1720203048082,-150.0,0.00013977,2]
[331302409,1720203048091,-150.0,0.00013979,2]
[331302410,1720203048101,-150.0,0.00013979,2]
[331302411,1720203048110,-150.0,0.00013981,2]
[331302412,1720203048119,-150.0,0.00013983,2]
[331302413,1720203048129,-150.0,0.00013987,2]
[331302414,1720203048139,-150.0,0.00013989,2]
[331302415,1720203048148,-150.0,0.0001399,2]
[331302416,1720203048157,-150.0,0.00013993,2]
[331302417,1720203048166,-150.0,0.00013997,2]
[331302418,1720203048175,-980.0,0.00013999,2]
[331302419,1720203048184,-700.00349965,0.00013999,2]
[331302420,1720203048193,-265.56668541,0.00013999,2]
[331302421,1720203048203,-444.50580657,0.00013999,2]
[331302422,1720203048212,-37855.79809901,0.00014,2]
[331302423,1720203198109,362.010111,0.00025223,120]
[331302424,1720203247977,5384.53588574,0.00011199,2]
[331302425,1720203316186,9051.42590755,0.00011199,2]
[331302427,1720203419204,173.55,0.00010559,2]
[331302431,1720203502045,361.29575595,0.00011199,2]
[331302432,1720203566146,8721.70958709,0.00011199,2]
[331302433,1720203594966,3393.51140613,0.00011199,2]
[331302434,1720203663275,180.42,0.0001028,2]
[331302435,1720203936345,504.94138761,0.00011199,2]
[331302436,1720204012598,724.82,0.00010923,2]
[331302449,1720204082236,155.0,0.00011199,2]
[331302450,1720204121906,307.18748065,0.00011199,2]
[331302454,1720204232207,-605.63135264,0.00012314,2]
[331302455,1720204232218,-518.0,0.00012661,2]
[331302456,1720204232227,-310.56,0.00012727,2]
[331302457,1720204232236,-250.0,0.00012815,2]
[331302458,1720204232245,-2360.14,0.00012816,2]
[331302459,1720204232254,-43.20236841,0.00012826,2]
[331302460,1720204232444,-956.79763159,0.00012826,2]
[331302461,1720204232454,-222.2,0.00012827,2]
[331302462,1720204232464,-250.0,0.00012835,2]
[331302463,1720204232473,-143.82732489,0.00012932,2]
[331302464,1720204232485,-1026.94267511,0.00012932,2]
[331302465,1720204232494,-291.8,0.00012936,2]
[331302466,1720204232503,-331.54367931,0.00013187,2]
[331302467,1720204232568,-345.19661385,0.00013187,2]
[331302468,1720204233059,-48.07970684,0.00013187,2]
[331302469,1720204233068,-365.26443049,0.00013472,2]
[331302470,1720204233077,-155.0,0.00013516,2]
[331302471,1720204233086,-430.41,0.00013699,2]
[331302472,1720204233096,-300.0,0.00013722,2]
[331302473,1720204233105,-150.0,0.00013723,2]
[331302474,1720204233114,-150.0,0.00013723,2]
[331302475,1720204233123,-150.0,0.00013727,2]
[331302476,1720204233133,-150.0,0.0001373,2]
[331302477,1720204233142,-150.0,0.0001373,2]
[331302478,1720204233151,-150.0,0.00013734,2]
[331302479,1720204233160,-150.0,0.00013735,2]
[331302480,1720204233169,-150.0,0.00013738,2]
[331302481,1720204233179,-150.0,0.0001374,2]
[331302482,1720204233187,-135.082879,0.0001374,2]
[331302483,1720204236237,-227.17477303,0.00013128,2]
[331302484,1720204236247,-40.0591621,0.00013128,2]
[331302493,1720204238779,-259.77770507,0.00013128,2]
[331302494,1720204238789,-14.917121,0.0001374,2]
[331302495,1720204238799,-25.42482948,0.00013741,2]
[331302496,1720204238812,-124.57517052,0.00013741,2]
[331302497,1720204238823,-150.0,0.00013746,2]
[331302498,1720204238833,-150.0,0.00013747,2]
[331302500,1720204238843,-150.0,0.00013749,2]
[331302502,1720204238857,-150.0,0.0001375,2]
[331302504,1720204238866,-150.0,0.00013751,2]
[331302506,1720204238876,-150.0,0.00013751,2]
[331302508,1720204238885,-150.0,0.00013755,2]
[331302510,1720204238894,-150.0,0.00013759,2]
[331302512,1720204238904,-150.0,0.0001376,2]
[331302514,1720204238914,-48.00322649,0.0001376,2]
[331302516,1720204238930,-1648.29877351,0.0001376,2]
[331302518,1720204238940,-150.0,0.00013761,2]
[331302520,1720204238950,-150.0,0.00013764,2]
[331302521,1720204238959,-150.0,0.00013769,2]
[331302522,1720204238969,-150.0,0.00013769,2]
[331302523,1720204238979,-150.0,0.00013776,2]
[331302524,1720204238988,-150.0,0.00013777,2]
[331302525,1720204239000,-150.0,0.00013783,2]
[331302526,1720204239013,-150.0,0.00013783,2]
[331302527,1720204239023,-150.0,0.00013785,2]
[331302528,1720204239034,-150.0,0.00013795,2]
[331302529,1720204239044,-150.0,0.00013796,2]
[331302530,1720204239056,-150.0,0.00013797,2]
[331302531,1720204239066,-150.0,0.00013798,2]
[331302532,1720204239077,-150.0,0.00013806,2]
[331302533,1720204239087,-150.0,0.00013808,2]
[331302534,1720204239097,-150.0,0.00013809,2]
[331302536,1720204239109,-150.0,0.00013809,2]
[331302537,1720204239119,-150.0,0.00013811,2]
[331302539,1720204239129,-140.02214817,0.00013812,2]
[331302541,1720204239143,-9.97785183,0.00013812,2]
[331302543,1720204239154,-150.0,0.00013813,2]
[331302545,1720204239165,-150.0,0.00013818,2]
[331302547,1720204239175,-150.0,0.00013823,2]
[331302549,1720204239185,-150.0,0.00013823,2]
[331302551,1720204239196,-150.0,0.00013825,2]
[331302553,1720204239210,-150.0,0.00013826,2]
[331302555,1720204239221,-150.0,0.00013827,2]
[331302557,1720204239232,-150.0,0.00013832,2]
[331302559,1720204239243,-30.29774817,0.00013833,2]
[331302561,1720204239256,-119.70225183,0.00013833,2]
[331302563,1720204239267,-150.0,0.00013833,2]
[331302565,1720204239278,-150.0,0.00013841,2]
[331302567,1720204239289,-150.0,0.00013841,2]
[331302569,1720204239300,-2.59515442,0.00013843,2]
[331302571,1720204239313,-147.40484558,0.00013843,2]
[331302573,1720204239324,-150.0,0.00013843,2]
[331302575,1720204239335,-150.0,0.00013844,2]
[331302578,1720204239346,-150.0,0.00013847,2]
[331302579,1720204239358,-150.0,0.00013847,2]
[331302581,1720204239369,-915.07650511,0.00013849,2]
[331302584,1720204239380,-150.0,0.00013851,2]
[331302586,1720204239391,-150.0,0.00013855,2]
[331302588,1720204239402,-1355.79762,0.0001386,2]
[331302589,1720204239412,-1355.79762,0.0001386,2]
[331302591,1720204239423,-150.0,0.00013866,2]
[331302593,1720204239434,-150.0,0.00013871,2]
[331302595,1720204239445,-150.0,0.00013874,2]
[331302597,1720204239456,-150.0,0.00013876,2]
[331302599,1720204239467,-150.0,0.00013878,2]
[331302601,1720204239479,-150.0,0.00013882,2]
[331302603,1720204239489,-150.0,0.00013885,2]
[331302606,1720204239500,-500.0,0.00013887,2]
[331302608,1720204239511,-200.0,0.00013887,2]
[331302609,1720204239521,-500.0,0.00013888,2]
[331302612,1720204239532,-500.0,0.00013888,2]
[331302614,1720204239543,-500.0,0.00013888,2]
[331302615,1720204239554,-200.0,0.00013888,2]
[331302617,1720204239564,-200.0,0.00013888,2]
[331302619,1720204239576,-150.0,0.0001389,2]
[331302621,1720204239586,-220.42,0.0001389,3]
[331302623,1720204239596,-150.0,0.00013892,2]
[331302625,1720204239609,-150.0,0.00013897,2]
[331302627,1720204239620,-150.0,0.00013898,2]
[331302629,1720204239631,-150.0,0.00013899,2]
[331302631,1720204239642,-3306.622,0.000139,2]
[331302633,1720204239655,-1567.8844,0.000139,2]
[331302635,1720204239666,-150.0,0.00013901,2]
[331302637,1720204239676,-470.72181117,0.00013908,2]
[331302639,1720204239687,-150.0,0.00013914,2]
[331302641,1720204239697,-150.0,0.00013915,2]
[331302643,1720204239708,-150.0,0.00013921,2]
[331302646,1720204239719,-150.0,0.00013923,2]
[331302648,1720204239730,-150.0,0.00013924,2]
[331302649,1720204239741,-150.0,0.00013925,2]
[331302651,1720204239751,-150.0,0.00013926,2]
[331302654,1720204239762,-150.0,0.00013927,2]
[331302666,1720204239888,-150.0,0.0001393,2]
[331302668,1720204239899,-150.0,0.00013931,2]
[331302670,1720204239911,-150.0,0.00013937,2]
[331302672,1720204239926,-150.0,0.00013942,2]
[331302675,1720204239936,-150.0,0.0001395,2]
[331302676,1720204239947,-150.0,0.00013951,2]
[331302679,1720204239959,-150.0,0.00013952,2]
[331302681,1720204239970,-150.0,0.00013955,2]
[331302683,1720204239980,-150.0,0.00013955,2]
[331302685,1720204239991,-150.0,0.00013957,2]
[331302688,1720204240005,-150.0,0.00013962,2]
[331302690,1720204240016,-150.0,0.00013962,2]
[331302693,1720204240027,-150.0,0.00013963,2]
[331302694,1720204240038,-150.0,0.00013968,2]
[331302697,1720204240049,-150.0,0.00013969,2]
[331302699,1720204240060,-150.0,0.0001397,2]
[331302701,1720204240070,-150.0,0.00013972,2]
[331302703,1720204240081,-150.0,0.00013973,2]
[331302705,1720204240091,-150.0,0.00013973,2]
[331302707,1720204240103,-150.0,0.00013978,2]
[331302709,1720204240114,-150.0,0.0001398,2]
[331302711,1720204240123,-150.0,0.00013988,2]
[331302713,1720204240136,-155.0,0.00013989,2]
[331302715,1720204240146,-301.74096619,0.00013989,2]
[331302717,1720204240157,-150.0,0.0001399,2]
[331302719,1720204240167,-350.00174983,0.00013999,2]
[331302721,1720204240178,-276.15184313,0.00013999,2]
[331302723,1720204240189,-386.94605046,0.00013999,2]
[331302725,1720204240199,-14652.20972785,0.00014,2]
[331302727,1720204240212,-9058.96894871,0.00014,2]
[331302824,1720204241440,-206.12734629,0.00013899,2]
[331302825,1720204241450,-868.42265371,0.00014,2]
[331302826,1720204241461,-500.0,0.00014,2]
[331302827,1720204241473,-4788.1326375,0.00014,2]
[331302828,1720204241486,-1398.53701901,0.00014,2]
[331302829,1720204241500,-8630.17277164,0.00014,2]
[331302830,1720204241522,-1637.99825234,0.00014,2]
[331302831,1720204241533,-33625.82427313,0.00014,2]
[331302832,1720204241544,-38831.90504504,0.00014,2]
[331302833,1720204241555,-33931.83335411,0.00014,2]
[331302835,1720204241564,-155.0,0.00014,2]
[331302837,1720204241574,-1355.79761,0.00014,2]
[331302839,1720204241583,-1355.79762,0.00014,2]
[331302841,1720204241592,-1355.79762,0.00014,2]
[331302843,1720204241604,-1355.79762,0.00014,2]
[331302845,1720204241613,-1000.0,0.00014429,2]
[331302847,1720204241622,-174.39,0.00014448,2]
[331302848,1720204241632,-174.18,0.00014487,2]
[331302849,1720204241642,-151.88785,0.00014521,2]
[331302850,1720204241652,-1213.2548212,0.000149,2]
[331302851,1720204241662,-273.7,0.00014904,4]
[331302852,1720204241671,-3089.94229022,0.00015,2]